bitfinex-derivatives/quotes_BNBF0:USTF0_20250529
["timestamp","ask_amount","ask_price","bid_price","bid_amount"]
[1748533653892,0.29342723,681.6,680.21,0.46623005]
[1748533654091,0.29342723,681.6,680.26,0.46623005]
[1748533654592,0.29342723,681.6,680.28,0.46623005]
[1748533654790,0.29342723,681.6,680.27,0.46623005]
[1748533654987,0.29342723,681.6,680.26,0.46623005]
[1748533655791,0.29342723,681.6,680.25,0.46623005]
[1748533656693,0.29342723,681.6,680.23,0.46623005]
[1748533657692,0.29342723,681.6,680.22,0.46623005]
[1748533658287,0.29342723,681.6,680.21,0.46623005]
[1748533659592,0.29342723,681.6,680.22,0.46623005]
[1748533659793,0.29342723,681.6,680.23,0.46623005]
[1748533660989,0.29342723,681.6,680.52,0.46623005]
[1748533661288,0.29342723,681.6,680.14,0.2940571]
[1748533661289,0.29342723,681.6,680.54,0.46623005]
[1748533662492,0.29342723,681.6,680.47,0.46623005]
[1748533665998,0.29342723,681.6,680.44,0.46623005]
[1748533666204,0.29342723,681.6,680.45,0.46623005]
[1748533666402,0.29342723,681.6,680.46,0.46623005]
[1748533666701,0.29342723,681.6,680.14,0.2940571]
[1748533666702,0.29342723,681.6,680.45,0.46623005]
[1748533668805,0.29342723,681.6,680.46,0.46623005]
[1748533669107,0.29342723,681.6,680.45,0.46623005]
[1748533670811,0.29342723,681.6,680.46,0.46623005]
[1748533671009,0.29342723,681.6,680.41,0.46623005]
[1748533671509,0.29342723,681.6,680.42,0.46623005]
[1748533671910,0.29342723,681.6,680.41,0.46623005]
[1748533672107,0.29342723,681.6,680.42,0.46623005]
[1748533672307,0.29342723,681.6,680.47,0.46623005]
[1748533674808,0.29342723,681.6,680.46,0.46623005]
[1748533676006,0.29342723,681.6,680.51,0.46623005]
[1748533676213,0.29342723,681.6,680.55,0.46623005]
[1748533676407,0.29342723,681.6,680.56,0.46623005]
[1748533677013,0.29342723,681.6,680.57,0.46623005]
[1748533677514,0.29342723,681.6,680.54,0.46623005]
[1748533677907,0.29342723,681.6,680.14,0.2940571]
[1748533677908,0.29342723,681.6,680.55,0.46623005]
[1748533678614,0.29342723,681.6,680.54,0.46623005]
[1748533679009,0.29342723,681.6,680.55,0.46623005]
[1748533679512,0.29342723,681.6,680.56,0.46623005]
[1748533679713,0.29342723,681.6,680.55,0.46623005]
[1748533680112,0.29342723,681.6,680.58,0.46623005]
[1748533682113,0.29342723,681.6,680.14,0.2940571]
[1748533682114,0.29342723,681.6,680.57,0.46623005]
[1748533682314,0.29342723,681.6,680.53,0.46623005]
[1748533682510,0.29342723,681.6,680.54,0.46623005]
[1748533683709,0.29342723,681.6,680.14,0.2940571]
[1748533683710,0.29342723,681.6,680.53,0.46623005]
[1748533684516,0.29342723,681.6,680.52,0.46623005]
[1748533685717,0.29342723,681.6,680.53,0.46623005]
[1748533686618,0.29342723,681.6,680.52,0.46623005]
[1748533688621,0.29342723,681.6,680.57,0.46623005]
[1748533689223,0.29342723,681.6,680.42,0.46623005]
[1748533689624,0.29342723,681.6,680.44,0.46623005]
[1748533689818,0.29342723,681.6,680.41,0.46623005]
[1748533690622,0.29342723,681.6,680.39,0.46623005]
[1748533690815,0.29342723,681.6,680.4,0.46623005]
[1748533691017,0.29342723,681.6,680.39,0.46623005]
[1748533691221,0.29342723,681.6,680.4,0.46623005]
[1748533691420,0.29342723,681.6,680.41,0.46623005]
[1748533691819,0.29342723,681.6,680.38,0.46623005]
[1748533692323,0.29342723,681.6,680.39,0.46623005]
[1748533692718,0.29342723,681.6,680.38,0.46623005]
[1748533693224,0.29342723,681.6,680.39,0.46623005]
[1748533693423,0.29342723,681.6,680.35,0.46623005]
[1748533693623,0.29342723,681.6,680.34,0.46623005]
[1748533693823,0.29342723,681.6,680.32,0.46623005]
[1748533695519,0.29342723,681.6,680.33,0.46623005]
[1748533696325,0.29342723,681.6,680.32,0.46623005]
[1748533696526,0.29342723,681.6,680.31,0.46623005]
[1748533697626,0.29342723,681.6,680.36,0.46623005]
[1748533698826,0.29342723,681.6,680.35,0.46623005]
[1748533699426,0.29342723,681.6,680.24,0.46623005]
[1748533699729,0.29342723,681.6,680.23,0.46623005]
[1748533700228,0.29342723,681.6,680.22,0.46623005]
[1748533700629,0.29342723,681.6,680.21,0.46623005]
[1748533700832,0.29342723,681.6,680.19,0.46623005]
[1748533701132,0.29342723,681.6,680.2,0.46623005]
[1748533701527,0.29342723,681.6,680.19,0.46623005]
[1748533701834,0.29342723,681.6,680.2,0.46623005]
[1748533702028,0.29342723,681.6,680.21,0.46623005]
[1748533702530,0.29342723,681.6,680.2,0.46623005]
[1748533702733,0.29342723,681.6,680.22,0.46623005]
[1748533703027,0.29342723,681.6,680.23,0.46623005]
[1748533703427,0.29342723,681.6,680.14,0.2940571]
[1748533703428,0.29342723,681.6,680.17,0.46623005]
[1748533703631,0.29342723,681.6,680.16,0.46623005]
[1748533703827,0.29342723,681.6,680.17,0.46623005]
[1748533704432,0.29342723,681.6,680.18,0.46623005]
[1748533704631,0.29342723,681.6,680.24,0.46623005]
[1748533705731,0.29342723,681.6,680.23,0.46623005]
[1748533707235,0.29342723,681.6,680.26,0.46623005]
[1748533707534,0.29342723,681.6,680.25,0.46623005]
[1748533707735,0.29342723,681.6,680.26,0.46623005]
[1748533708233,0.29342723,681.6,680.14,0.2940571]
[1748533708234,0.29342723,681.6,680.25,0.46623005]
[1748533709431,0.29342723,681.6,680.14,0.2940571]
[1748533709432,0.29342723,681.6,680.24,0.46623005]
[1748533712040,0.29342723,681.6,680.25,0.46623005]
[1748533712536,0.29342723,681.6,680.29,0.46623005]
[1748533713242,0.29342723,681.6,680.35,0.46623005]
[1748533713639,0.29342723,681.6,680.36,0.46623005]
[1748533714036,0.29342723,681.6,680.14,0.2940571]
[1748533721553,0.29342723,681.6,680.14,0.76028715]
[1748533721947,0.29342723,681.6,680.14,0.2940571]
[1748533722650,0.29342723,681.6,680.15,0.46623005]
[1748533723649,0.29342723,681.6,680.18,0.46623005]
[1748533724452,0.29342723,681.6,680.17,0.46623005]
[1748533724648,0.29342723,681.6,680.18,0.46623005]
[1748533724854,0.29342723,681.6,680.23,0.46623005]
[1748533725756,0.29342723,681.6,680.14,0.2940571]
[1748533738263,0.29342723,681.6,680.31,0.46623005]
[1748533738458,0.29342723,681.6,680.3,0.46623005]
[1748533738663,0.29342723,681.6,680.31,0.46623005]
[1748533739462,0.29342723,681.6,680.3,0.46623005]
[1748533739659,0.29342723,681.6,680.22,0.46623005]
[1748533740163,0.29342723,681.6,680.21,0.46623005]
[1748533740966,0.29342723,681.6,680.14,0.2940571]
[1748533740967,0.29342723,681.6,680.26,0.46623005]
[1748533742067,0.29342723,681.6,680.28,0.46623005]
[1748533742262,0.29342723,681.6,680.34,0.46623005]
[1748533742667,0.29342723,681.6,680.35,0.46623005]
[1748533742965,0.29342723,681.6,680.34,0.46623005]
[1748533743367,0.29342723,681.6,680.35,0.46623005]
[1748533743568,0.29342723,681.6,680.26,0.46623005]
[1748533743771,0.29342723,681.6,680.14,0.2940571]
[1748533748771,0.29342723,681.6,679.8,0.46700433]
[1748533749272,0.29342723,681.6,679.79,0.46700433]
[1748533749569,0.29342723,681.6,679.34,0.46700433]
[1748533749570,0.29342723,681.6,679.8,0.46700433]
[1748533750371,0.29342723,681.6,679.79,0.46700433]
[1748533750766,0.29342723,681.6,679.8,0.46700433]
[1748533751371,0.29342723,681.6,679.78,0.46700433]
[1748533751867,0.29342723,681.6,679.79,0.46700433]
[1748533752767,0.29342723,681.6,679.8,0.46700433]
[1748533753369,0.29342723,681.6,679.92,0.46700433]
[1748533754371,0.29342723,681.6,679.89,0.46700433]
[1748533754571,0.29342723,681.6,679.92,0.46700433]
[1748533754774,0.29342723,681.6,679.97,0.46700433]
[1748533756267,0.29342723,681.6,679.94,0.46700433]
[1748533756669,0.29342723,681.6,679.92,0.46700433]
[1748533756870,0.29342723,681.6,679.94,0.46700433]
[1748533757275,0.29342723,681.6,679.93,0.46700433]
[1748533757576,0.29342723,681.6,679.9,0.46700433]
[1748533757773,0.29342723,681.6,679.92,0.46700433]
[1748533758271,0.29342723,681.6,679.91,0.46700433]
[1748533758870,0.29342723,681.6,679.9,0.46700433]
[1748533759075,0.29342723,681.6,679.91,0.46700433]
[1748533759275,0.29342723,681.6,679.84,0.46700433]
[1748533759775,0.29342723,681.6,679.83,0.46700433]
[1748533760075,0.29342723,681.6,679.79,0.46700433]
[1748533760475,0.29342723,681.6,679.78,0.46700433]
[1748533761275,0.29342723,681.6,679.77,0.46700433]
[1748533761476,0.29342723,681.6,679.75,0.46700433]
[1748533761777,0.29342723,681.6,679.57,0.46700433]
[1748533762076,0.29342723,681.6,679.58,0.76130375]
[1748533762277,0.29342723,681.6,679.59,0.29429508]
[1748533769985,0.29342723,681.6,679.6,0.46700433]
[1748533770582,0.29342723,681.6,679.67,0.46700433]
[1748533770782,0.29342723,681.6,679.59,0.29429508]
[1748533770783,0.29342723,681.6,679.68,0.46700433]
[1748533770983,0.29342723,681.6,679.67,0.46700433]
[1748533771382,0.29342723,681.6,679.68,0.46700433]
[1748533771581,0.29342723,681.6,679.59,0.29429508]
[1748533771582,0.29342723,681.6,679.69,0.46700433]
[1748533771780,0.29342723,681.6,679.59,0.29429508]
[1748533777489,0.29342723,681.6,679.59,0.76129941]
[1748533778383,0.29342723,681.6,679.64,0.46700433]
[1748533778588,0.29342723,681.6,679.65,0.2942691]
[1748533778785,0.29342723,681.6,679.66,0.46700433]
[1748533778988,0.29342723,681.6,679.67,0.29426044]
[1748533779185,0.29342723,681.6,679.69,0.46700433]
[1748533779388,0.29342723,681.6,679.7,0.29424746]
[1748533781692,0.29342723,681.6,679.96,0.46700433]
[1748533782287,0.29342723,681.6,679.95,0.46700433]
[1748533783590,0.29342723,681.6,679.94,0.46700433]
[1748533784094,0.29342723,681.6,680.03,0.46700433]
[1748533784293,0.29342723,681.6,680.02,0.46700433]
[1748533784889,0.29342723,681.6,680.14,0.46700433]
[1748533785391,0.29342723,681.6,680.05,0.46700433]
[1748533785594,0.29342723,681.6,679.7,0.29424746]
[1748533785595,0.29342723,681.6,679.75,0.46700433]
[1748533785793,0.29342723,681.6,679.74,0.46700433]
[1748533786195,0.29342723,681.6,679.8,0.46700433]
[1748533786390,0.29342723,681.6,679.76,0.76122581]
[1748533786596,0.29342723,681.6,679.82,0.29419552]
[1748533794999,0.29342723,681.6,679.87,0.46700433]
[1748533795200,0.29342723,681.6,679.88,0.76117388]
[1748533795500,0.29342723,681.6,679.89,0.76116956]
[1748533795799,0.29342723,681.6,679.9,0.76116523]
[1748533796000,0.29342723,681.6,679.91,0.29415657]
[1748533796697,0.29342723,681.6,679.91,0.7611609]
[1748533797802,0.29342723,681.6,679.92,0.46700433]
[1748533798102,0.29342723,681.6,679.93,0.29414792]
[1748533798702,0.29342723,681.6,679.93,0.76115225]
[1748533798903,0.29342723,681.6,679.97,0.46700433]
[1748533799098,0.29342723,681.6,679.98,0.29412629]
[1748533799299,0.29342723,681.6,679.99,0.46700433]
[1748533799599,0.25557885,681.45,680.0,0.29411764]
[1748533799904,0.29349612,681.44,680.0,0.29411764]
[1748533800104,0.29349612,681.44,680.2,0.46700433]
[1748533800306,0.29349612,681.44,680.21,0.46700433]
[1748533800801,0.29349612,681.44,680.0,0.29411764]
[1748533800802,0.29349612,681.44,680.2,0.46700433]
[1748533801005,0.29349612,681.44,680.21,0.46700433]
[1748533801304,0.29349612,681.44,680.0,0.29411764]
[1748533801305,0.29349612,681.44,680.22,0.46700433]
[1748533801706,0.29349612,681.44,680.21,0.46700433]
[1748533801901,0.29349612,681.44,680.0,0.29411764]
[1748533801902,0.29349612,681.44,680.22,0.46700433]
[1748533802303,0.29349612,681.44,680.23,0.46700433]
[1748533802504,0.29349612,681.44,680.29,0.46700433]
[1748533802704,0.29349612,681.44,680.0,0.29411764]
[1748533809615,0.29349612,681.44,680.16,0.46700433]
[1748533810316,0.29349612,681.44,680.18,0.46700433]
[1748533810515,0.29349612,681.44,680.19,0.46700433]
[1748533811112,0.29349612,681.44,680.0,0.29411764]
[1748533811113,0.29349612,681.44,680.18,0.46700433]
[1748533811913,0.29349612,681.44,680.19,0.46700433]
[1748533812418,0.29349612,681.44,680.1,0.46700433]
[1748533812815,0.29349612,681.44,680.13,0.46700433]
[1748533813017,0.29349612,681.44,680.12,0.46700433]
[1748533813420,0.29349612,681.44,680.13,0.46700433]
[1748533814116,0.29349612,681.44,680.12,0.46700433]
[1748533814319,0.29349612,681.44,680.13,0.46700433]
[1748533814614,0.29349612,681.44,680.0,0.29411764]
[1748533814615,0.29349612,681.44,680.12,0.46700433]
[1748533815217,0.29349612,681.44,680.13,0.46700433]
[1748533816322,0.29349612,681.44,680.14,0.46700433]
[1748533817424,0.29349612,681.44,680.16,0.46700433]
[1748533817619,0.29349612,681.44,680.16,0.29404845]
[1748533819620,0.29349612,681.44,680.37,0.46700433]
[1748533819825,0.29349612,681.44,680.4,0.46700433]
[1748533820225,0.29349612,681.44,680.43,0.46700433]
[1748533820525,0.29349612,681.44,680.4,0.46700433]
[1748533821020,0.29349612,681.44,680.43,0.46700433]
[1748533821224,0.29349612,681.44,680.44,0.46700433]
[1748533821425,0.29349612,681.44,680.41,0.46700433]
[1748533822620,0.29349612,681.44,680.38,0.46700433]
[1748533823327,0.29349612,681.44,680.37,0.46700433]
[1748533823522,0.29349612,681.44,680.37,0.29395769]
[1748533825929,0.29349612,681.44,680.44,0.46700433]
[1748533826329,0.25548504,681.79,680.44,0.46700433]
[1748533826628,0.25548504,681.79,680.37,0.29395769]
[1748533826629,0.25548504,681.79,680.43,0.46700433]
[1748533826830,0.25548504,681.79,680.43,0.7609361]
[1748533827230,0.25548504,681.79,680.46,0.46700433]
[1748533827630,0.25548504,681.79,680.45,0.46700433]
[1748533828229,0.25548504,681.79,680.43,0.29393177]
[1748533828629,0.25548504,681.79,680.43,0.7609361]
[1748533828930,0.94634124,686.44,680.43,0.29393177]
[1748533829234,0.25513664,682.13,680.47,0.46700433]
[1748533829436,0.29320784,682.11,680.43,0.29393177]
[1748533834435,0.29320784,682.11,680.43,0.7609361]
[1748533834635,0.29320784,682.11,680.43,0.29393177]
[1748533849053,0.29320784,682.11,680.51,0.46700433]
[1748533849250,0.29320784,682.11,680.53,0.29388858]
[1748533855752,0.29320784,682.11,680.53,0.76089291]
[1748533856458,0.29320784,682.11,680.55,0.46700433]
[1748533856655,0.29320784,682.11,680.57,0.29387131]
[1748533857457,0.29320784,682.11,680.59,0.46700433]
[1748533857659,0.29320784,682.11,680.61,0.29385404]
[1748533858661,0.29320784,682.11,680.64,0.46700433]
[1748533858854,0.29320784,682.11,680.66,0.29383245]
[1748533859663,0.29320784,682.11,680.69,0.46700433]
[1748533859862,0.29320784,682.11,680.71,0.7608152]
[1748533860059,0.29320784,682.11,680.73,0.29380224]
[1748533860259,0.29320784,682.11,680.73,0.76080657]
[1748533860461,0.29320784,682.11,680.78,0.46700433]
[1748533860662,0.29320784,682.11,680.79,0.76078067]
[1748533860863,0.29320784,682.11,680.8,0.29377203]
[1748533861558,0.29320784,682.11,680.84,0.46700433]
[1748533861763,0.29320784,682.11,680.85,0.29375045]
[1748533862463,0.29320784,682.11,680.85,0.76075478]
[1748533862657,0.29320784,682.11,680.93,0.46700433]
[1748533862861,0.29320784,682.11,680.93,0.76072027]
[1748533863562,0.29320784,682.11,681.07,0.46700433]
[1748533864662,0.29320784,682.11,681.09,0.46700433]
[1748533865061,0.29320784,682.11,681.08,0.46700433]
[1748533865562,0.29320784,682.11,681.09,0.46700433]
[1748533865761,0.29320784,682.11,681.27,0.46700433]
[1748533866360,0.29320784,682.11,681.01,0.46700433]
[1748533866561,0.29320784,682.11,681.0,0.46700433]
[1748533866763,0.29320784,682.11,680.99,0.46700433]
[1748533867058,0.29320784,682.11,680.93,0.29371594]
[1748533867059,0.29320784,682.11,680.95,0.46700433]
[1748533867565,0.29320784,682.11,680.96,0.46700433]
[1748533867957,0.29320784,682.11,680.95,0.46700433]
[1748533868462,0.29320784,682.11,680.96,0.46700433]
[1748533870564,0.29320784,682.11,680.97,0.46700433]
[1748533871457,0.29320784,682.11,680.96,0.46700433]
[1748533872659,0.29320784,682.11,681.06,0.46700433]
[1748533872964,0.29320784,682.11,680.93,0.29371594]
[1748533872965,0.29320784,682.11,681.18,0.46700433]
[1748533873662,0.29320784,682.11,681.25,0.46700433]
[1748533874264,0.29320784,682.11,680.93,0.29371594]
[1748533874265,0.29320784,682.11,681.22,0.46700433]
[1748533874464,0.29320784,682.11,681.21,0.46700433]
[1748533874764,0.29320784,682.11,681.22,0.46700433]
[1748533874964,0.29320784,682.11,681.23,0.46700433]
[1748533875364,0.29320784,682.11,681.24,0.46700433]
[1748533875563,0.29320784,682.11,681.23,0.46700433]
[1748533875764,0.29320784,682.11,681.24,0.46700433]
[1748533876267,0.29320784,682.11,681.27,0.46700433]
[1748533876666,0.29320784,682.11,681.3,0.46700433]
[1748533877170,0.29320784,682.11,681.27,0.46700433]
[1748533877969,0.29320784,682.11,681.28,0.46700433]
[1748533878471,0.29320784,682.11,681.27,0.46700433]
[1748533879272,0.29320784,682.11,681.15,0.46700433]
[1748533880167,0.29320784,682.11,681.16,0.46700433]
[1748533881373,0.29320784,682.11,681.15,0.46700433]
[1748533883369,0.29320784,682.11,681.16,0.46700433]
[1748533883574,0.29320784,682.11,681.15,0.46700433]
[1748533884276,0.29320784,682.11,681.16,0.46700433]
[1748533884877,0.29320784,682.11,681.1,0.46700433]
[1748533886177,0.29320784,682.11,681.07,0.46700433]
[1748533887276,0.29320784,682.11,681.05,0.46700433]
[1748533887973,0.29320784,682.11,681.04,0.46700433]
[1748533888577,0.29320784,682.11,681.03,0.46700433]
[1748533888778,0.29320784,682.11,681.04,0.46700433]
[1748533888978,0.29320784,682.11,681.06,0.46700433]
[1748533889179,0.29320784,682.11,681.12,0.46700433]
[1748533889574,0.29320784,682.11,681.16,0.46700433]
[1748533890779,0.29320784,682.11,681.14,0.46700433]
[1748533890975,0.29320784,682.11,681.06,0.29365988]
[1748533890976,0.29320784,682.11,681.15,0.46700433]
[1748533891180,0.94634124,685.5,681.15,0.46700433]
[1748533891380,0.25519277,682.53,681.23,0.46700433]
[1748533891576,0.94634124,686.42,681.06,0.29365988]
[1748533891577,0.2930317,682.52,681.22,0.46700433]
[1748533892377,0.2930317,682.52,681.16,0.46700433]
[1748533893386,0.2930317,682.52,681.19,0.46700433]
[1748533894386,0.2930317,682.52,681.2,0.46700433]
[1748533894687,0.2930317,682.52,681.19,0.46700433]
[1748533895481,0.2930317,682.52,681.18,0.46700433]
[1748533895682,0.2930317,682.52,681.18,0.76061248]
[1748533896390,0.2930317,682.52,681.23,0.46700433]
[1748533896687,0.2930317,682.52,681.22,0.46700433]
[1748533898383,0.2930317,682.52,681.18,0.29360815]
[1748533898384,0.2930317,682.52,681.21,0.46700433]
[1748533899485,0.2930317,682.52,681.22,0.46700433]
[1748533900088,0.2930317,682.52,681.21,0.46700433]
[1748533900487,0.2930317,682.52,681.2,0.46700433]
[1748533900686,0.2930317,682.52,681.22,0.46700433]
[1748533901384,0.2930317,682.52,681.23,0.46700433]
[1748533901590,0.2930317,682.52,681.2,0.46700433]
[1748533902290,0.2930317,682.52,681.27,0.46700433]
[1748533902890,0.2930317,682.52,681.24,0.46700433]
[1748533903287,0.2930317,682.52,681.27,0.46700433]
[1748533903485,0.2930317,682.52,681.28,0.46700433]
[1748533903686,0.2930317,682.52,681.18,0.29360815]
[1748533903687,0.2930317,682.52,681.31,0.46700433]
[1748533904395,0.2930317,682.52,681.34,0.46700433]
[1748533904589,0.2930317,682.52,681.35,0.46700433]
[1748533906593,0.2930317,682.52,681.36,0.46700433]
[1748533906998,0.2930317,682.52,681.38,0.46700433]
[1748533907290,0.2930317,682.52,681.18,0.29360815]
[1748533912193,0.2930317,682.52,681.2,0.46700433]
[1748533912503,0.2930317,682.52,681.21,0.29359522]
[1748533913393,0.2930317,682.52,681.3,0.46700433]
[1748533914299,0.2930317,682.52,681.34,0.46700433]
[1748533914500,0.2930317,682.52,681.33,0.46700433]
[1748533915100,0.2930317,682.52,681.34,0.46700433]
[1748533916898,0.2930317,682.52,681.21,0.29359522]
[1748533916899,0.2930317,682.52,681.28,0.46700433]
[1748533917102,0.2930317,682.52,681.21,0.29359522]
[1748533923507,0.2930317,682.52,681.21,0.76059955]
[1748533925410,0.2930317,682.52,681.22,0.46700433]
[1748533925611,0.2930317,682.52,681.26,0.46700433]
[1748533925906,0.2930317,682.52,681.27,0.46700433]
[1748533926108,0.2930317,682.52,681.33,0.46700433]
[1748533926906,0.2930317,682.52,681.23,0.2935866]
[1748533926907,0.2930317,682.52,681.59,0.46700433]
[1748533927208,0.2930317,682.52,681.6,0.46700433]
[1748533927813,0.2930317,682.52,681.61,0.46700433]
[1748533928109,0.2930317,682.52,681.62,0.46700433]
[1748533929614,0.2930317,682.52,681.6,0.46700433]
[1748533929814,0.2930317,682.52,681.56,0.46700433]
[1748533930214,0.2930317,682.52,681.23,0.2935866]
[1748533930215,0.2930317,682.52,681.57,0.46700433]
[1748533930410,0.2930317,682.52,681.58,0.46700433]
[1748533931510,0.2930317,682.52,681.59,0.46700433]
[1748533932518,0.2930317,682.52,681.49,0.46700433]
[1748533932815,0.2930317,682.52,681.5,0.46700433]
[1748533933115,0.2930317,682.52,681.49,0.46700433]
[1748533933515,0.2930317,682.52,681.5,0.46700433]
[1748533934511,0.2930317,682.52,681.23,0.2935866]
[1748533934512,0.2930317,682.52,681.51,0.46700433]
[1748533935518,0.2930317,682.52,681.52,0.46700433]
[1748533935919,0.2930317,682.52,681.56,0.46700433]
[1748533936419,0.2930317,682.52,681.58,0.46700433]
[1748533937519,0.2930317,682.52,681.6,0.46700433]
[1748533937717,0.2930317,682.52,681.61,0.46700433]
[1748533938318,0.2930317,682.52,681.6,0.46700433]
[1748533938518,0.2930317,682.52,681.23,0.2935866]
[1748533938519,0.2930317,682.52,681.62,0.46700433]
[1748533939324,0.2930317,682.52,681.45,0.46700433]
[1748533939720,0.2930317,682.52,681.46,0.46700433]
[1748533940417,0.2930317,682.52,681.47,0.46700433]
[1748533941523,0.2930317,682.52,681.43,0.46700433]
[1748533942319,0.2930317,682.52,681.46,0.46700433]
[1748533942923,0.2930317,682.52,681.23,0.2935866]
[1748533942924,0.2930317,682.52,681.44,0.46700433]
[1748533943723,0.2930317,682.52,681.35,0.46700433]
[1748533944326,0.2930317,682.52,681.36,0.46700433]
[1748533944526,0.2930317,682.52,681.35,0.46700433]
[1748533944826,0.2930317,682.52,681.36,0.46700433]
[1748533945023,0.2930317,682.52,681.35,0.46700433]
[1748533945429,0.2930317,682.52,681.36,0.46700433]
[1748533945630,0.2930317,682.52,681.37,0.46700433]
[1748533948633,0.2930317,682.52,681.38,0.294]
[1748533949327,0.2930317,682.52,681.44,0.46700433]
[1748533949528,0.2930317,682.52,681.45,0.46700433]
[1748533950528,0.2930317,682.52,681.46,0.46700433]
[1748533950734,0.2930317,682.52,681.38,0.294]
[1748533950735,0.2930317,682.52,681.39,0.46700433]
[1748533951434,0.2930317,682.52,681.43,0.46700433]
[1748533951634,0.2930317,682.52,681.46,0.46700433]
[1748533951829,0.2930317,682.52,681.47,0.46700433]
[1748533952934,0.2930317,682.52,681.48,0.46700433]
[1748533953333,0.2930317,682.52,681.49,0.46700433]
[1748533953531,0.2930317,682.52,681.59,0.46700433]
[1748533957739,0.2930317,682.52,681.6,0.46700433]
[1748533957935,0.2930317,682.52,681.63,0.46700433]
[1748533959737,0.2930317,682.52,681.62,0.46700433]
[1748533960543,0.2930317,682.52,681.58,0.46700433]
[1748533961144,0.2930317,682.52,681.38,0.294]
[1748533961145,0.2930317,682.52,681.57,0.46700433]
[1748533962545,0.2930317,682.52,681.6,0.46700433]
[1748533962740,0.2930317,682.52,681.59,0.46700433]
[1748533963243,0.2930317,682.52,681.6,0.46700433]
[1748533964642,0.2930317,682.52,681.59,0.46700433]
[1748533965540,0.2930317,682.52,681.58,0.46700433]
[1748533965744,0.2930317,682.52,681.59,0.46700433]
[1748533966045,0.2930317,682.52,681.58,0.46700433]
[1748533966444,0.2930317,682.52,681.39,0.46700433]
[1748533966640,0.2930317,682.52,681.38,0.76100433]
[1748533967344,0.2930317,682.52,681.38,0.294]
[1748533971648,0.2930317,682.52,681.34,0.46700433]
[1748533973346,0.2930317,682.52,681.35,0.385]
[1748533976554,0.2930317,682.52,681.36,0.46677775]
[1748533976949,0.2930317,682.52,681.37,0.46677775]
[1748533977649,0.2930317,682.52,681.36,0.46677775]
[1748533978550,0.2930317,682.52,681.37,0.46677775]
[1748533979753,0.2930317,682.52,681.36,0.46677775]
[1748533980152,0.2930317,682.52,681.37,0.46677775]
[1748533980854,0.2930317,682.52,681.36,0.46677775]
[1748533983753,0.2930317,682.52,681.35,0.85177775]
[1748533984160,0.2930317,682.52,681.43,0.46677775]
[1748533984961,0.2930317,682.52,681.6,0.46677775]
[1748533987058,0.2930317,682.52,681.59,0.46677775]
[1748533988563,0.2930317,682.52,681.62,0.46677775]
[1748533988763,0.2930317,682.52,681.61,0.46677775]
[1748533989358,0.2930317,682.52,681.35,0.385]
[1748533989359,0.2930317,682.52,681.66,0.46677775]
[1748533990566,0.2930317,682.52,681.35,0.385]
[1748534004588,0.2930317,682.52,681.35,0.85177775]
[1748534004987,0.2930317,682.52,681.35,0.385]
[1748534005285,0.2930317,682.52,681.35,0.85177775]
[1748534005485,0.2930317,682.52,681.35,0.46677775]
[1748534007491,0.2930317,682.52,681.23,0.2935866]
[1748534007686,0.2930317,682.52,681.36,0.456]
[1748534010692,0.2930317,682.52,681.41,0.46677775]
[1748534011086,0.2930317,682.52,681.42,0.46677775]
[1748534011390,0.2930317,682.52,681.43,0.46677775]
[1748534011691,0.2930317,682.52,681.41,0.46677775]
[1748534011892,0.2930317,682.52,681.4,0.46677775]
[1748534012090,0.2930317,682.52,681.36,0.456]
[1748534012091,0.2930317,682.52,681.42,0.46677775]
[1748534013593,0.2930317,682.52,681.4,0.46677775]
[1748534014391,0.2930317,682.52,681.39,0.46677775]
[1748534014587,0.2930317,682.52,681.38,0.46677775]
[1748534015391,0.2930317,682.52,681.37,0.46677775]
[1748534015589,0.2930317,682.52,681.36,0.92277775]
[1748534015994,0.2930317,682.52,681.36,0.456]
[1748534017289,0.2930317,682.52,681.36,0.92277775]
[1748534017492,0.2930317,682.52,681.36,0.456]
[1748534020894,0.2930317,682.52,681.43,0.46677775]
[1748534022194,0.2930317,682.52,681.36,0.456]
[1748534022195,0.2930317,682.52,681.44,0.46677775]
[1748534022893,0.2930317,682.52,681.45,0.46677775]
[1748534023596,0.2930317,682.52,681.47,0.46677775]
[1748534023796,0.2930317,682.52,681.48,0.46677775]
[1748534023994,0.2930317,682.52,681.47,0.46677775]
[1748534024198,0.2930317,682.52,681.48,0.46677775]
[1748534024500,0.2930317,682.52,681.49,0.46677775]
[1748534025197,0.2930317,682.52,681.48,0.46677775]
[1748534025502,0.2930317,682.52,681.36,0.456]
[1748534036806,0.2930317,682.52,681.35,0.46677775]
[1748534037706,0.2930317,682.52,681.34,0.46677775]
[1748534039203,0.2930317,682.52,681.23,0.76036435]
[1748534039406,0.2930317,682.52,681.23,0.2935866]
[1748534039706,0.2930317,682.52,681.35,0.351]
[1748534065126,0.2930317,682.52,681.37,0.46677775]
[1748534065529,0.2930317,682.52,681.41,0.46677775]
[1748534065831,0.2930317,682.52,681.46,0.46677775]
[1748534066029,0.2930317,682.52,681.47,0.46677775]
[1748534067733,0.2930317,682.52,681.35,0.351]
[1748534067734,0.2930317,682.52,681.41,0.46677775]
[1748534067934,0.2930317,682.52,681.35,0.351]
[1748534073635,0.2930317,682.52,681.23,0.2935866]